fUSD/lending_fUSD_20260414
["ID","MTS","AMOUNT","RATE_DAILY","PERIOD"]
[420470369,1776120116461,-10000.01,0.00011315,2]
[420470370,1776120125812,-10000.01,0.00011315,2]
[420470371,1776120125866,-4590.79,0.00011315,2]
[420470372,1776120125898,-818.43,0.00011315,2]
[420470373,1776120126006,-3866.17445735,0.00011315,2]
[420470374,1776120127174,-2267.6610853,0.00011315,2]
[420470375,1776120141422,-160.0,0.00011515,3]
[420470376,1776120203369,-152.0,0.00011515,3]
[420470377,1776120252435,-152.0,0.00011515,3]
[420470378,1776120285380,-201.67793137,0.00011495,2]
[420470379,1776120315571,-152.0,0.00011495,3]
[420470380,1776120315615,-156.0,0.00011495,3]
[420470381,1776120331355,150.0,0.00011342,2]
[420470382,1776120333112,150.0,0.0001227,30]
[420470383,1776120333461,150.0,0.00013019,30]
[420470384,1776120333845,150.0,0.00013768,30]
[420470385,1776120334218,150.0,0.00014516,30]
[420470386,1776120378017,-152.0,0.00010764,2]
[420470387,1776120378055,-152.0,0.00010764,2]
[420470388,1776120395074,-152.0,0.00011495,3]
[420470389,1776120440934,-152.0,0.00011495,3]
[420470390,1776120444627,1600.0,0.00010978,2]
[420470391,1776120529948,200.0,0.000165,30]
[420470392,1776120566854,-1500.0,0.00010946,2]
[420470393,1776120582705,170.44,8.767e-05,2]
[420470394,1776120612810,-892.55,0.00010958,2]
[420470399,1776120631684,-195.0,0.00011227,2]
[420470400,1776120631720,-161.44950306,0.00011434,2]
[420470401,1776120631744,-33.55049694,0.00011434,2]
[420470402,1776120631763,-156.0,0.00011495,3]
[420470403,1776120631775,-194.30489902,0.00011495,2]
[420470404,1776120631795,-200.53158744,0.00011545,2]
[420470405,1776120631836,-49.46841256,0.00011545,2]
[420470406,1776120631845,-250.0,0.00011575,2]
[420470407,1776120631870,-394.14460404,0.00011595,2]
[420470409,1776120631886,-205.85539596,0.00011595,2]
[420470410,1776120631905,-1200.0,0.00011612,2]
[420470411,1776120631922,-600.0,0.00011613,2]
[420470412,1776120631934,-600.0,0.00011613,2]
[420470414,1776120631958,-300.0,0.00011715,2]
[420470417,1776120631975,-300.0,0.00011715,2]
[420470419,1776120631985,-1200.0,0.00011716,2]
[420470421,1776120632006,-300.0,0.00011735,2]
[420470423,1776120632019,-500.0,0.00011737,2]
[420470424,1776120632036,-693.13256738,0.00011755,2]
[420470425,1776120632046,-400.0,0.000118,4]
[420470426,1776120632055,-1422.89257804,0.00011887,2]
[420470427,1776120632067,-720.22605909,0.00011887,2]
[420470428,1776120632114,-10911.58214973,0.00011887,2]
[420470429,1776120632128,-17404.33150997,0.00011887,2]
[420470430,1776120632149,-345901.84582892,0.00011887,2]
[420470431,1776120632168,-16571.36479205,0.00011887,2]
[420470432,1776120632182,-17142.29742571,0.00011887,2]
[420470433,1776120632193,-67748.64750661,0.00011887,2]
[420470434,1776120632215,-43043.21452602,0.00011887,2]
[420470435,1776120632231,-21394.83710553,0.00011887,2]
[420470440,1776120637788,-320.0,0.00011647,2]
[420470441,1776120637797,-194.304899,0.00011648,2]
[420470442,1776120637819,-220.20884788,0.00011886,2]
[420470444,1776120637830,-145.0265373,0.00011886,2]
[420470445,1776120637871,-58.54946416,0.00011886,2]
[420470446,1776120637882,-188.14292864,0.00011886,2]
[420470447,1776120637898,-175.71825717,0.00011886,2]
[420470448,1776120637912,-500.0,0.00011886,2]
[420470449,1776120637923,-500.0,0.00011886,2]
[420470450,1776120637932,-290.64626882,0.00011886,2]
[420470451,1776120637942,-500.0,0.00011886,2]
[420470452,1776120637957,-500.0,0.00011886,2]
[420470453,1776120637966,-500.0,0.00011886,2]
[420470454,1776120637976,-500.0,0.00011886,2]
[420470455,1776120637991,-500.0,0.00011886,2]
[420470456,1776120638004,-500.0,0.00011886,2]
[420470457,1776120638014,-500.0,0.00011886,2]
[420470458,1776120638035,-39328.87284299,0.00011887,2]
[420470459,1776120638048,-9399.4086997,0.00011887,2]
[420470462,1776120641621,-194.304899,0.000118,2]
[420470463,1776120641632,-365.22876636,0.000118,2]
[420470464,1776120641645,-291.72479288,0.000118,2]
[420470465,1776120641668,-1058.9566945,0.000118,2]
[420470466,1776120641681,-736.12857669,0.000118,2]
[420470467,1776120641693,-297.28257251,0.000118,2]
[420470468,1776120641762,-6657.42045116,0.000118,2]
[420470469,1776120641775,-800.71742749,0.000118,2]
[420470470,1776120641792,-591.34651064,0.000118,2]
[420470471,1776120641804,-2414.10485394,0.000118,2]
[420470472,1776120641821,-632.1369189,0.000118,2]
[420470474,1776120641832,-1348.44383966,0.00011841,2]
[420470477,1776120641861,-21986.59606034,0.00011841,2]
[420470478,1776120641873,-70036.91624027,0.00011887,2]
[420470483,1776120642113,-2207.26,0.00011887,2]
[420470484,1776120642142,-11254.23974103,0.00011887,2]
[420470485,1776120642175,-1109.5857,0.00011887,2]
[420470486,1776120642188,-924.39266294,0.00011887,2]
[420470494,1776120642711,-40525.35295662,0.00011887,2]
[420470495,1776120642904,-1751.70942853,0.00011887,2]
[420470496,1776120642947,-570.0,0.00011887,2]
[420470498,1776120645809,-528.85154338,0.00011887,2]
[420470499,1776120645851,-6849.00005,0.00011887,2]
[420470500,1776120645881,-414.51008327,0.00011887,2]
[420470501,1776120645911,-515.32199994,0.00011887,2]
[420470502,1776120645939,-469.78000001,0.00011887,2]
[420470503,1776120645984,-10789.81379238,0.00011887,2]
[420470504,1776120646032,-2539.86167588,0.00011887,2]
[420470523,1776120646383,-43264.98760139,0.00011887,2]
[420470525,1776120646392,-800.0,0.000119,4]
[420470527,1776120646402,-150.0,0.0001194,2]
[420470529,1776120646412,-150.99,0.00011941,2]
[420470531,1776120646424,-2268.61,0.00011941,2]
[420470532,1776120646436,-23435.79,0.00011941,2]
[420470534,1776120646446,-351.75,0.00011941,2]
[420470536,1776120646462,-500.0,0.00011941,2]
[420470538,1776120646495,-1000.0,0.00011942,2]
[420470541,1776120646510,-357.37,0.00011942,2]
[420470543,1776120646537,-2907.46,0.00011942,2]
[420470545,1776120646550,-9999.99,0.00011942,2]
[420470547,1776120646593,-4999.99,0.00011942,2]
[420470549,1776120646604,-1309.51,0.00011987,2]
[420470551,1776120646638,-9999.99,0.00011987,2]
[420470553,1776120646648,-9999.99,0.00012001,2]
[420470555,1776120646665,-299.99,0.00012001,2]
[420470557,1776120646687,-431.94,0.00012001,2]
[420470559,1776120646696,-9938.74824846,0.00012013,2]
[420470561,1776120646744,-1128.1913,0.00012015,2]
[420470563,1776120646802,-330.33171884,0.00012015,2]
[420470565,1776120646820,-156.58721904,0.00012015,2]
[420470567,1776120646850,-500.0,0.00012038,2]
[420470569,1776120646895,-195.0,0.00012054,2]
[420470571,1776120646925,-308.251,0.00012058,2]
[420470573,1776120646949,-5233.81,0.00012058,2]
[420470575,1776120646965,-9999.99,0.00012087,2]
[420470577,1776120646987,-29999.99,0.00012087,2]
[420470579,1776120646999,-1057.83,0.00012087,2]
[420470581,1776120647019,-281.8873027,0.00012105,2]
[420470583,1776120647032,-500.0,0.00012107,2]
[420470585,1776120647042,-151.0,0.00012107,2]
[420470587,1776120647054,-151.0,0.00012107,2]
[420470589,1776120647066,-500.0,0.00012107,2]
[420470591,1776120647081,-151.0,0.00012107,2]
[420470592,1776120647091,-500.0,0.00012107,2]
[420470632,1776120647634,-151.0,0.00012107,2]
[420470634,1776120647654,-500.0,0.00012107,2]
[420470636,1776120647665,-151.0,0.00012107,2]
[420470638,1776120647679,-500.0,0.00012107,2]
[420470640,1776120647696,-151.0,0.00012107,2]
[420470642,1776120647705,-500.0,0.00012107,2]
[420470644,1776120647722,-151.0,0.00012107,2]
[420470646,1776120647744,-500.0,0.00012107,2]
[420470648,1776120647764,-151.0,0.00012107,2]
[420470650,1776120647807,-500.0,0.00012107,2]
[420470652,1776120647828,-151.0,0.00012107,2]
[420470654,1776120647854,-538.93140846,0.00012107,2]
[420470657,1776120647866,-151.0,0.00012107,2]
[420470659,1776120647933,-151.0,0.00012107,2]
[420470661,1776120647944,-500.0,0.00012107,2]
[420470663,1776120647973,-151.0,0.00012107,2]
[420470665,1776120647993,-151.0,0.00012107,2]
[420470667,1776120648005,-151.0,0.00012107,2]
[420470669,1776120648029,-151.0,0.00012107,2]
[420470670,1776120648039,-151.0,0.00012107,2]
[420470672,1776120648055,-151.0,0.00012107,2]
[420470674,1776120648081,-151.0,0.00012107,2]
[420470676,1776120648091,-151.0,0.00012107,2]
[420470678,1776120648137,-151.0,0.00012107,2]
[420470680,1776120648168,-151.0,0.00012107,2]
[420470682,1776120648177,-151.0,0.00012107,2]
[420470684,1776120648191,-151.0,0.00012107,2]
[420470686,1776120648205,-151.0,0.00012107,2]
[420470688,1776120648215,-151.0,0.00012107,2]
[420470690,1776120648225,-151.0,0.00012107,2]
[420470692,1776120648243,-171.90896635,0.00012107,2]
[420470695,1776120648253,-151.0,0.00012107,2]
[420470697,1776120648263,-151.0,0.00012107,2]
[420470698,1776120648274,-15746.29239768,0.00012114,4]
[420470700,1776120648285,-152.0,0.00012115,2]
[420470701,1776120648294,-1000.0,0.00012144,2]
[420470702,1776120648304,-160.00618037,0.00012173,2]
[420470703,1776120648314,-160.00777731,0.00012173,2]
[420470704,1776120648330,-500.0,0.00012173,2]
[420470705,1776120648343,-500.0,0.00012173,2]
[420470706,1776120648352,-501.51019132,0.00012173,2]
[420470707,1776120648364,-13845.047565,0.00012178,2]
[420470708,1776120648377,-361.29313198,0.00012239,2]
[420470709,1776120648388,-151.0,0.00012259,2]
[420470710,1776120648397,-5298.82,0.00012299,2]
[420470711,1776120648411,-1600.0,0.00012351,2]
[420470712,1776120648421,-9938.7482484,0.00012367,2]
[420470713,1776120648433,-2367.0,0.00012575,2]
[420470714,1776120648445,-1000.0,0.0001259,2]
[420470715,1776120648464,-150.0,0.000126,2]
[420470716,1776120648476,-166.66,0.00012607,2]
[420470717,1776120648486,-195.0,0.00012645,2]
[420470718,1776120648502,-5000.0,0.00012645,2]
[420470719,1776120648517,-250.0,0.00012645,2]
[420470720,1776120648528,-701.63152632,0.00012645,2]
[420470721,1776120648540,-156.58721903,0.00012652,2]
[420470722,1776120648559,-500.0,0.00012721,2]
[420470723,1776120648569,-9938.7482484,0.00012721,2]
[420470724,1776120648600,-1000.0,0.00012751,2]
[420470725,1776120648627,-193.0,0.00012755,2]
[420470726,1776120648642,-600.0,0.00012755,2]
[420470727,1776120648661,-4495.285,0.00012755,2]
[420470728,1776120648679,-154.6109889,0.00012755,2]
[420470729,1776120648688,-300.0,0.00012755,2]
[420470730,1776120648703,-1680.0,0.00012774,2]
[420470731,1776120648718,-1200.0,0.000128,4]
[420470732,1776120648731,-420.0,0.00012864,2]
[420470733,1776120648754,-1700.0,0.000129,4]
[420470734,1776120648764,-151.29788464,0.00012901,2]
[420470735,1776120648774,-250.0,0.00013,2]
[420470736,1776120648790,-255.0,0.00013015,2]
[420470737,1776120648808,-166.66,0.00013024,2]
[420470738,1776120648818,-9938.7482484,0.00013075,2]
[420470739,1776120648830,-1000.0,0.00013113,2]
[420470740,1776120648853,-221.91907485,0.00013186,2]
[420470741,1776120648863,-156.58721903,0.00013289,2]
[420470742,1776120648873,-354.76241669,0.00013326,2]
[420470743,1776120648897,-862.2399248,0.00013338,2]
[420470744,1776120648921,-9938.7482484,0.00013429,2]
[420470745,1776120648933,-166.66,0.0001344,2]
[420470746,1776120648947,-6927.93389828,0.00013454,2]
[420470747,1776120648956,-5000.0,0.00013454,2]
[420470748,1776120648968,-5000.0,0.00013454,2]
[420470749,1776120648978,-5000.0,0.00013454,2]
[420470750,1776120648992,-5000.0,0.00013454,2]
[420470751,1776120649002,-275.20611,0.00013585,2]
[420470752,1776120649016,-162.787419,0.00013585,2]
[420470753,1776120649030,-279.667516,0.00013585,2]
[420470754,1776120649040,-209.843156,0.00013585,2]
[420470755,1776120649050,-160.0,0.00013585,2]
[420470756,1776120649071,-199.854215,0.00013585,2]
[420470757,1776120649080,-239.708431,0.00013585,2]
[420470758,1776120649091,-330.33171884,0.00013608,2]
[420470759,1776120649116,-500.0,0.00013698,2]
[420470760,1776120649126,-500.0,0.00013698,2]
[420470761,1776120649135,-500.0,0.00013698,2]
[420470762,1776120649154,-500.0,0.00013698,2]
[420470763,1776120649165,-500.0,0.00013698,2]
[420470764,1776120649178,-500.0,0.00013698,2]
[420470765,1776120649191,-278.5,0.00013698,2]
[420470766,1776120649209,-500.0,0.00013698,2]
[420470767,1776120649218,-500.0,0.00013698,2]
[420470768,1776120649240,-500.0,0.00013698,2]
[420470769,1776120649250,-500.0,0.00013698,2]
[420470770,1776120649263,-500.0,0.00013698,2]
[420470771,1776120649278,-500.0,0.00013698,2]
[420470772,1776120649289,-500.0,0.00013698,2]
[420470773,1776120649298,-500.0,0.00013698,2]
[420470774,1776120649316,-587.77407481,0.00013698,2]
[420470775,1776120649329,-500.0,0.00013698,2]
[420470776,1776120649339,-500.0,0.00013698,2]
[420470777,1776120649349,-500.0,0.00013698,2]
[420470778,1776120649370,-500.0,0.00013698,2]
[420470779,1776120649380,-500.0,0.00013698,2]
[420470780,1776120649395,-214.03,0.00013698,2]
[420470781,1776120649412,-500.0,0.00013698,2]
[420470782,1776120649422,-500.0,0.00013698,2]
[420470783,1776120649450,-262.76841251,0.00013698,2]
[420470784,1776120649460,-500.0,0.00013698,2]
[420470785,1776120649478,-500.0,0.00013698,2]
[420470786,1776120649533,-325.0,0.00013699,2]
[420470787,1776120649547,-211.30690894,0.00013699,2]
[420470788,1776120649557,-500.0,0.00013699,2]
[420470789,1776120649597,-500.0,0.00013699,2]
[420470790,1776120649615,-500.0,0.00013699,2]
[420470791,1776120649631,-500.0,0.00013699,2]
[420470792,1776120649658,-500.0,0.00013699,2]
[420470793,1776120649668,-519.60324852,0.00013699,2]
[420470794,1776120649679,-500.0,0.00013699,2]
[420470795,1776120649702,-152.79365911,0.00013699,2]
[420470796,1776120649714,-1600.0,0.00013723,2]
[420470797,1776120649724,-465.61,0.0001373,2]
[420470798,1776120649742,-578.20924308,0.00013755,2]
[420470799,1776120649770,-721.12765535,0.00013755,2]
[420470800,1776120649780,-209.40437684,0.00013755,2]
[420470801,1776120649790,-200.0,0.00013755,2]
[420470802,1776120649805,-500.0,0.00013755,2]
[420470803,1776120649819,-1428.38747117,0.00013755,2]
[420470804,1776120649830,-151.0,0.00013755,2]
[420470805,1776120649842,-500.0,0.00013755,2]
[420470806,1776120649859,-500.0,0.00013755,2]
[420470807,1776120649870,-500.0,0.00013755,2]
[420470808,1776120649890,-500.0,0.00013755,2]
[420470809,1776120649901,-500.0,0.00013755,2]
[420470810,1776120649911,-500.0,0.00013755,2]
[420470811,1776120649931,-500.0,0.00013755,2]
[420470812,1776120649943,-500.0,0.00013755,2]
[420470813,1776120649953,-500.0,0.00013755,2]
[420470814,1776120649976,-174.61919141,0.00013755,2]
[420470815,1776120649989,-500.0,0.00013755,2]
[420470816,1776120650013,-500.0,0.00013755,2]
[420470817,1776120650039,-9938.7482484,0.00013784,2]
[420470818,1776120650051,-189.8851,0.000138,2]
[420470819,1776120650067,-410.0,0.00013808,2]
[420470820,1776120650088,-500.0,0.0001381,2]
[420470821,1776120650099,-151.0,0.0001381,2]
[420470822,1776120650116,-465.77,0.00013854,2]
[420470823,1776120650132,-166.66,0.00013856,2]
[420470824,1776120650143,-666.0,0.00013861,2]
[420470825,1776120650159,-13997.11144119,0.00013862,2]
[420470826,1776120650202,-19060.27965881,0.00013862,2]
[420470827,1776120650226,-1000.0,0.00013862,2]
[420470828,1776120650239,-500.0,0.00013865,2]
[420470829,1776120650254,-151.0,0.00013865,2]
[420470830,1776120650282,-500.0,0.0001392,2]
[420470831,1776120650293,-151.0,0.0001392,2]
[420470832,1776120650318,-156.58721903,0.00013926,2]
[420470833,1776120650333,-500.0,0.00013975,2]
[420470834,1776120650350,-151.0,0.00013975,2]
[420470835,1776120650370,-168.05992997,0.00013984,2]
[420470836,1776120650412,-324.75219624,0.00013988,2]
[420470837,1776120650429,-500.0,0.00014015,2]
[420470838,1776120650461,-500.0,0.00014015,2]
[420470839,1776120650497,-500.0,0.00014015,2]
[420470840,1776120650523,-500.0,0.00014015,2]
[420470841,1776120650539,-500.41466935,0.00014015,2]
[420470842,1776120650562,-500.0,0.00014015,2]
[420470843,1776120650577,-160.52200438,0.00014015,2]
[420470844,1776120650601,-500.0,0.00014019,2]
[420470845,1776120650615,-500.6016971,0.00014019,2]
[420470846,1776120650645,-500.0,0.00014019,2]
[420470847,1776120650656,-500.0,0.00014019,2]
[420470848,1776120650676,-500.0,0.00014019,2]
[420470849,1776120650690,-500.0,0.00014019,2]
[420470850,1776120650700,-500.35790352,0.00014019,2]
[420470851,1776120650730,-500.0,0.00014019,2]
[420470852,1776120650746,-340.17481224,0.00014019,2]
[420470853,1776120650761,-500.0,0.00014019,2]
[420470854,1776120650781,-500.0,0.00014019,2]
[420470855,1776120650792,-500.0,0.00014019,2]
[420470856,1776120650808,-500.0,0.00014019,2]
[420470857,1776120650823,-500.33240079,0.00014019,2]
[420470858,1776120650840,-500.0,0.00014019,2]
[420470859,1776120650850,-500.0,0.00014019,2]
[420470860,1776120650860,-500.0,0.00014019,2]
[420470861,1776120650874,-500.0,0.0001402,2]
[420470862,1776120650885,-500.68363415,0.0001402,2]
[420470863,1776120650895,-500.0,0.0001403,2]
[420470864,1776120650904,-151.0,0.0001403,2]
[420470865,1776120650921,-1469.0,0.00014051,2]
[420470866,1776120650934,-500.0,0.00014061,2]
[420470867,1776120650945,-500.0,0.00014061,2]
[420470868,1776120650960,-500.0,0.00014061,2]
[420470869,1776120650971,-557.31,0.00014061,2]
[420470870,1776120650984,-500.0,0.00014061,2]
[420470871,1776120650999,-500.0,0.00014061,2]
[420470872,1776120651012,-500.40308644,0.00014069,2]
[420470873,1776120651027,-500.0,0.00014085,2]
[420470874,1776120651046,-151.0,0.00014085,2]
[420470875,1776120651056,-150.0,0.000141,2]
[420470876,1776120651069,-500.0,0.000141,2]
[420470877,1776120651082,-500.0,0.000141,2]
[420470878,1776120651117,-260.58704618,0.000141,2]
[420470879,1776120789266,-500.0,0.00011395,2]
[420470880,1776121039745,-156.0,0.00011395,2]
[420470881,1776121039773,-157.0,0.00011395,2]
[420470882,1776121039801,-195.0,0.00011396,2]
[420470883,1776121039833,-3984.01,0.00011396,2]
[420470884,1776121046379,-1015.99,0.00011396,2]
[420470885,1776121046417,-250.0,0.00011398,2]
[420470886,1776121046456,-1577.0,0.000114,5]
[420470887,1776121046524,-995.40490319,0.00011422,2]
[420470888,1776121047105,-1418.77019362,0.00011422,2]
[420470889,1776121052013,-904.45,0.00011422,2]
[420470890,1776121052060,-600.0,0.00011448,2]
[420470891,1776121052100,-250.0,0.00011469,2]
[420470892,1776121052135,-216.8192085,0.000115,2]
[420470893,1776121052165,-500.0,0.000116,2]
[420470895,1776121135454,-312.46999951,0.00011,2]
[420470896,1776121161787,6000.0,0.000165,30]
[420470898,1776121327341,-10000.01,0.000107,2]
[420470899,1776121327566,-10000.01,0.000107,2]
[420470900,1776121327710,-10000.01,0.000107,2]
[420470901,1776121327938,-10000.01,0.000107,2]
[420470902,1776121328259,-10000.01,0.000107,2]
[420470903,1776121362368,1865.313665,0.00010646,2]
[420470904,1776121371918,160.51745118,0.0001058,2]
[420470905,1776121384633,-150.0,0.00010699,2]
[420470906,1776121384669,-300.0,0.00010699,2]
[420470907,1776121387206,156.0,0.00010695,2]
[420470908,1776121412648,8944.01,0.00010699,2]
[420470909,1776121412695,10000.01,0.00010699,2]
[420470910,1776121412777,5935.81339967,0.00010699,2]
[420470911,1776121441223,300.0,0.00010699,2]
[420470912,1776121452101,156.0,0.00010699,2]
[420470913,1776121458810,158.08,5.396e-05,2]
[420470914,1776121459015,158.08,5.887e-05,2]
[420470915,1776121459273,158.08,6.378e-05,2]
[420470916,1776121459453,158.08,6.868e-05,2]
[420470917,1776121459799,158.08,7.359e-05,2]
[420470918,1776121461031,158.08,7.849e-05,2]
[420470919,1776121461069,158.08,8.34e-05,2]
[420470920,1776121461113,158.08,8.83e-05,2]
[420470921,1776121461621,158.08,9.321e-05,2]
[420470922,1776121461682,158.08,9.812e-05,2]
[420470923,1776121461755,158.08,0.00010302,2]
[420470924,1776121501524,300.0,0.00010699,2]
[420470925,1776121501578,1200.0,0.00010699,2]
[420470926,1776121510609,156.0,0.00010699,2]
[420470927,1776121511015,156.0,0.00010699,2]
[420470928,1776121561119,300.0,0.00010699,2]
[420470930,1776121562194,150.0,0.00010699,2]
[420470931,1776121568304,156.0,0.00010699,2]
[420470932,1776121621144,300.0,0.00010699,2]
[420470933,1776121682141,1221.2975,0.000106,2]
[420470934,1776121687451,156.0,0.00010699,2]
[420470935,1776121720575,2000.0,0.00010688,2]
[420470936,1776121741325,300.0,0.00010699,2]
[420470937,1776121741753,150.0,0.00010699,2]
[420470938,1776121747643,156.0,0.00010699,2]
[420470939,1776121801354,241.0,0.00010699,2]
[420470940,1776121806602,156.0,0.00010699,2]
[420470941,1776121810916,157.0,0.00010699,2]
[420470949,1776121836183,-5211.49292933,0.000107,2]
[420470950,1776121836205,-13434.82471076,0.000107,2]
[420470951,1776121836216,-931.70372915,0.000107,2]
[420470952,1776121836266,-10534.31893508,0.000107,2]
[420470953,1776121836464,-39205.97376273,0.000107,2]
[420470954,1776121836504,-10497.06713017,0.000107,2]
[420470955,1776121836548,-8934.29,0.00010701,2]
[420470956,1776121836570,-250.0,0.00010709,2]
[420470957,1776121836590,-522.49,0.00010718,2]
[420470958,1776121836652,-250.0,0.00010781,2]
[420470959,1776121836676,-158.08,0.00010793,2]
[420470960,1776121836733,-152.0,0.00010796,2]
[420470961,1776121836761,-152.0,0.00010796,2]
[420470962,1776121836899,-150.0,0.00010959,2]
[420470963,1776121836914,-200.0,0.00011093,2]
[420470964,1776121836942,-157.0,0.00011277,3]
[420470965,1776121836975,-468.13939116,0.00011395,2]
[420470966,1776121837091,-5532.0,0.000114,5]
[420470967,1776121837119,-487.4127,0.000116,2]
[420470968,1776121837188,-8768.06851384,0.000116,4]
[420470969,1776121837203,-200.0,0.000116,4]
[420470970,1776121837251,-4975.50029936,0.00011637,2]
[420470971,1776121837316,-8300.1,0.00011686,2]
[420470972,1776121837326,-1261.35,0.00011686,2]
[420470973,1776121837340,-9923.3697,0.00011687,2]
[420470974,1776121837368,-1000.0,0.00011687,2]
[420470975,1776121837380,-1301.49,0.00011687,2]
[420470976,1776121837401,-6777.4493,0.00011687,2]
[420470977,1776121837412,-2500.0,0.00011687,2]
[420470978,1776121837422,-500.0,0.00011687,2]
[420470979,1776121837449,-1550.02631794,0.0001169,2]
[420470980,1776121837460,-4187.048,0.00011692,2]
[420470981,1776121837470,-246.601,0.00011692,2]
[420470982,1776121837481,-400.0,0.000117,4]
[420470983,1776121837501,-12766.11924483,0.000117,2]
[420470984,1776121837511,-169.70243487,0.000117,2]
[420470985,1776121837522,-196.69422067,0.0001177,2]
[420470986,1776121837542,-600.0,0.0001177,2]
[420470987,1776121837553,-600.0,0.0001177,2]
[420470988,1776121837566,-600.0,0.0001177,2]
[420470989,1776121837585,-250.0,0.0001177,2]
[420470990,1776121837596,-195.0,0.0001177,2]
[420470991,1776121837606,-600.0,0.0001177,2]
[420470992,1776121837640,-600.0,0.0001177,2]
[420470993,1776121837650,-164.32828602,0.0001177,2]
[420470994,1776121837665,-458.0198321,0.00011777,2]
[420470995,1776121837748,-151.0,0.00011784,2]
[420470996,1776121837863,-1031.69392741,0.00011786,3]
[420470999,1776121837888,-500.0,0.00011786,2]
[420471001,1776121837940,-500.0,0.00011786,2]
[420471002,1776121837984,-413.20782367,0.00011786,2]
[420471005,1776121838071,-500.0,0.00011786,2]
[420471008,1776121838149,-329.66103693,0.00011786,2]
[420471011,1776121838172,-500.0,0.00011786,2]
[420471012,1776121838195,-329.25615088,0.00011786,2]
[420471013,1776121838249,-500.0,0.00011786,2]
[420471014,1776121838294,-134451.48354103,0.00011787,2]
[420471015,1776121838362,-281352.9998179,0.00011787,2]
[420471016,1776121838389,-1254.41808677,0.00011787,2]
[420471017,1776121838436,-1098.2438978,0.00011787,2]
[420471018,1776121838494,-577.69225892,0.00011787,2]
[420471107,1776121840814,-3767.52516145,0.000117,2]
[420471108,1776121840826,-22051.95255589,0.00011787,2]
[420471109,1776121840846,-770.45357976,0.00011787,2]
[420471110,1776121840858,-485.6612641,0.00011787,2]
[420471111,1776121840896,-733.3777153,0.00011787,2]
[420471112,1776121840909,-436.28397424,0.00011787,2]
[420471113,1776121840946,-975724.33250829,0.00011787,2]
[420471114,1776121840957,-600.0,0.000118,4]
[420471115,1776121840998,-151.0,0.0001188,2]
[420471116,1776121841018,-151.0,0.0001188,2]
[420471117,1776121841030,-151.0,0.0001188,2]
[420471118,1776121841040,-151.0,0.0001188,2]
[420471119,1776121841053,-151.0,0.0001188,2]
[420471120,1776121841063,-151.0,0.0001188,2]
[420471121,1776121841073,-151.0,0.0001188,2]
[420471122,1776121841083,-151.0,0.0001188,2]
[420471123,1776121841097,-151.0,0.0001188,2]
[420471124,1776121841117,-151.0,0.0001188,2]
[420471125,1776121841128,-151.0,0.0001188,2]
[420471126,1776121841138,-500.0,0.0001188,2]
[420471127,1776121841151,-500.0,0.0001188,2]
[420471128,1776121841163,-500.0,0.0001188,2]
[420471129,1776121841189,-594.61806827,0.0001188,2]
[420471130,1776121841199,-151.0,0.00011884,2]
[420471131,1776121841209,-150.0,0.000119,2]
[420471132,1776121841229,-12903.31389584,0.000119,2]
[420471133,1776121841249,-800.0,0.000119,4]